bitfinex/quotes_BTCUSD_20250423
["timestamp","ask_amount","ask_price","bid_price","bid_amount"]
[1745379021169,1.20486695,92824.0,92821.0,0.01077342]
[1745379021865,1.20486695,92824.0,92820.0,0.20469706]
[1745379021866,1.20486695,92824.0,92820.0,0.01077354]
[1745379022030,1.20486695,92824.0,92821.0,0.01077342]
[1745379022835,1.20486695,92824.0,92819.0,0.02462566]
[1745379023035,1.20486695,92824.0,92820.0,0.01077354]
[1745379023476,1.20486695,92824.0,92821.0,0.001]
[1745379023686,1.20486695,92824.0,92821.0,0.01177342]
[1745379023836,1.20486695,92824.0,92821.0,0.01077342]
[1745379024036,1.20486695,92824.0,92820.0,0.001]
[1745379024447,1.20486695,92824.0,92820.0,0.01177354]
[1745379024648,1.20486695,92824.0,92820.0,0.01077354]
[1745379024856,1.20486695,92824.0,92821.0,0.001]
[1745379026385,1.20486695,92824.0,92820.0,0.01077354]
[1745379026717,1.19786695,92824.0,92820.0,0.01177354]
[1745379027060,1.19786695,92824.0,92821.0,0.01077342]
[1745379028311,1.19786695,92824.0,92821.0,0.01177342]
[1745379028514,1.19786695,92824.0,92821.0,0.20569364]
[1745379029478,1.19786695,92824.0,92823.0,0.53391745]
[1745379029690,1.19786695,92824.0,92823.0,1.52437745]
[1745379029896,1.19786695,92824.0,92823.0,1.21990345]
[1745379030064,1.19248729,92824.0,92823.0,1.09398345]
[1745379030757,1.19248729,92824.0,92823.0,1.09498345]
[1745379030960,1.19248729,92824.0,92823.0,0.92390845]
[1745379031358,1.19248729,92824.0,92823.0,0.92290845]
[1745379031560,1.19248729,92824.0,92823.0,0.92390845]
[1745379031962,1.19248729,92824.0,92823.0,0.92590845]
[1745379032993,1.19248729,92824.0,92823.0,0.92490845]
[1745379033178,1.19248729,92824.0,92823.0,0.92290845]
[1745379033612,1.19248729,92824.0,92823.0,0.92390845]
[1745379033916,1.19248729,92824.0,92823.0,0.92490845]
[1745379034054,1.19248729,92824.0,92823.0,0.86787645]
[1745379034277,1.19248729,92824.0,92823.0,0.68467845]
[1745379034481,1.18548729,92824.0,92823.0,0.68367845]
[1745379034883,1.18548729,92824.0,92823.0,0.68167845]
[1745379035084,1.18548729,92824.0,92823.0,0.68267845]
[1745379035287,1.18548729,92824.0,92823.0,0.341]
[1745379037246,1.18548729,92824.0,92823.0,0.342]
[1745379037770,1.18548729,92824.0,92823.0,0.34]
[1745379038143,1.1916251,92824.0,92823.0,0.341]
[1745379038979,1.1916251,92824.0,92823.0,0.003]
[1745379039955,1.1916251,92824.0,92823.0,0.002]
[1745379040152,1.1916251,92824.0,92823.0,0.001]
[1745379040351,1.1916251,92824.0,92819.0,0.01385201]
[1745379040586,1.1916251,92824.0,92823.0,0.001]
[1745379040787,1.1916251,92824.0,92823.0,0.002]
[1745379041191,1.1916251,92824.0,92823.0,0.001]
[1745379042333,1.1856251,92824.0,92823.0,0.001]
[1745379042930,1.1856251,92824.0,92820.0,0.01077354]
[1745379043139,1.1856251,92824.0,92821.0,0.01077342]
[1745379043299,1.1856251,92824.0,92820.0,0.01077354]
[1745379043500,1.1856251,92824.0,92821.0,0.01077342]
[1745379043724,1.1856251,92824.0,92823.0,0.001]
[1745379044107,1.1856251,92824.0,92821.0,0.01077342]
[1745379044307,1.1856251,92824.0,92821.0,0.01177342]
[1745379044576,1.1856251,92824.0,92821.0,0.01077342]
[1745379045224,1.1856251,92824.0,92821.0,0.01177342]
[1745379045430,0.0465,92823.0,92821.0,0.001]
[1745379045792,0.00613185,92822.0,92821.0,0.001]
[1745379046394,0.00613185,92822.0,92819.0,0.01432232]
[1745379046696,0.01690515,92822.0,92814.0,0.13152974]
[1745379046919,0.01690515,92822.0,92821.0,0.002]
[1745379047165,0.00613185,92822.0,92821.0,0.002]
[1745379050063,0.04563185,92823.0,92821.0,0.002]
[1745379050243,0.23954955,92823.0,92821.0,0.002]
[1745379050761,0.23954955,92823.0,92821.0,0.001]
[1745379050966,0.15710305,92822.0,92821.0,0.001]
[1745379051178,0.19393208,92816.0,92814.0,0.01433518]
[1745379051522,0.01077435,92813.0,92810.0,0.13152974]
[1745379051745,0.01077423,92814.0,92802.0,0.01077562]
[1745379051944,0.01077458,92811.0,92799.0,0.35077597]
[1745379052157,0.01077446,92812.0,92801.0,0.14230548]
[1745379052368,0.01077412,92815.0,92802.0,0.01077562]
[1745379052731,0.00977435,92813.0,92803.0,0.01077551]
[1745379052969,0.01077423,92814.0,92803.0,0.01077551]
[1745379053168,0.19433936,92825.0,92811.0,0.01077458]
[1745379053297,0.19433936,92825.0,92811.0,0.27383406]
[1745379053507,0.01077342,92821.0,92811.0,0.26305948]
[1745379054362,0.01077365,92819.0,92811.0,0.26305948]
[1745379054563,0.01077354,92820.0,92811.0,0.13152974]
[1745379054931,0.20469946,92819.0,92811.0,0.13152974]
[1745379055176,0.010774,92816.0,92811.0,0.13152974]
[1745379055375,0.20469946,92819.0,92806.0,0.1423049]
[1745379055600,0.01077388,92817.0,92806.0,0.13152974]
[1745379055791,0.01077388,92817.0,92811.0,0.002]
[1745379055966,0.010774,92816.0,92811.0,0.002]
[1745379056170,0.010774,92816.0,92811.0,0.001]
[1745379056548,0.010774,92816.0,92806.0,0.1453049]
[1745379056936,0.010774,92816.0,92806.0,0.1473049]
[1745379057134,0.01077388,92817.0,92806.0,0.1443049]
[1745379057534,0.20469946,92819.0,92806.0,0.1443049]
[1745379057747,0.20469946,92819.0,92806.0,0.1423049]
[1745379057951,0.01077388,92817.0,92806.0,0.1423049]
[1745379058569,0.01077388,92817.0,92811.0,0.002]
[1745379059067,0.01077354,92820.0,92811.0,0.002]
[1745379059282,0.01077365,92819.0,92811.0,0.001]
[1745379059446,0.01077377,92818.0,92807.0,0.01077504]
[1745379059852,0.01077377,92818.0,92811.0,0.001]
[1745379060061,0.01077377,92818.0,92806.0,0.1423049]
[1745379060287,0.01077388,92817.0,92811.0,0.002]
[1745379060448,0.01077377,92818.0,92811.0,0.003]
[1745379060797,0.01077377,92818.0,92811.0,0.002]
[1745379061212,0.01077377,92818.0,92811.0,0.003]
[1745379061618,0.01077365,92819.0,92811.0,0.003]
[1745379061915,0.01077342,92821.0,92811.0,0.001]
[1745379062125,0.01077365,92819.0,92811.0,0.001]
[1745379062349,0.01077354,92820.0,92811.0,0.003]
[1745379062989,0.01077365,92819.0,92808.0,0.01077493]
[1745379063189,0.01077365,92819.0,92811.0,0.003]
[1745379063343,0.20470011,92819.0,92811.0,0.003]
[1745379063551,0.010774,92816.0,92811.0,0.002]
[1745379063710,0.01077388,92817.0,92806.0,0.13152974]
[1745379063914,0.01077388,92817.0,92811.0,0.003]
[1745379064141,0.01077388,92817.0,92811.0,0.002]
[1745379064555,0.01077388,92817.0,92811.0,0.007]
[1745379064870,0.010774,92816.0,92811.0,0.007]
[1745379065070,0.0488,92816.0,92811.0,0.007]
[1745379065385,0.010774,92816.0,92806.0,0.1423049]
[1745379065585,0.19392646,92819.0,92806.0,0.1423049]
[1745379065836,0.19392646,92819.0,92811.0,0.006]
[1745379066167,0.01077388,92817.0,92806.0,0.1423049]
[1745379066367,0.01077354,92820.0,92808.0,0.01077493]
[1745379066576,0.01077365,92819.0,92808.0,0.01077493]
[1745379067130,0.01077354,92820.0,92810.0,0.0107747]
[1745379067303,0.01077354,92820.0,92811.0,0.004]
[1745379067511,0.01077342,92821.0,92811.0,0.004]
[1745379067711,0.01077342,92821.0,92810.0,0.0107747]
[1745379067912,0.0107733,92822.0,92811.0,0.14230432]
[1745379068116,0.0107733,92822.0,92813.0,0.13152974]
[1745379068316,0.001,92823.0,92813.0,0.13152974]
[1745379068520,0.001,92823.0,92820.0,0.01077354]
[1745379068691,0.001,92823.0,92818.0,0.0465]
[1745379068879,0.001,92823.0,92818.0,0.05727377]
[1745379069080,0.001,92823.0,92818.0,0.01077377]
[1745379069329,0.001,92823.0,92819.0,0.01077365]
[1745379069740,0.001,92823.0,92820.0,0.01077354]
[1745379070121,0.001,92823.0,92819.0,0.01077365]
[1745379070319,0.001,92823.0,92820.0,0.01077354]
[1745379070898,0.001,92823.0,92819.0,0.003]
[1745379071753,0.001,92823.0,92820.0,0.001]
[1745379071948,0.001,92823.0,92819.0,0.003]
[1745379072128,0.001,92823.0,92817.0,0.01077388]
[1745379072324,0.001,92823.0,92819.0,0.001]
[1745379072544,0.001,92823.0,92819.0,0.003]
[1745379072932,1.17348729,92824.0,92819.0,0.004]
[1745379073580,1.17348729,92824.0,92819.0,0.001]
[1745379074122,1.17348729,92824.0,92820.0,0.001]
[1745379074367,1.17348729,92824.0,92819.0,0.001]
[1745379074826,1.17348729,92824.0,92819.0,0.002]
[1745379075278,1.17348729,92824.0,92819.0,0.001]
[1745379075425,1.17348729,92824.0,92820.0,0.001]
[1745379075826,1.17348729,92824.0,92819.0,0.003]
[1745379076230,1.17348729,92824.0,92819.0,0.001]
[1745379076549,1.17348729,92824.0,92820.0,0.002]
[1745379076985,1.17348729,92824.0,92819.0,0.001]
[1745379077591,0.0107733,92822.0,92819.0,0.001]
[1745379077783,0.01077319,92823.0,92819.0,0.002]
[1745379077943,1.18426036,92824.0,92819.0,0.002]
[1745379078352,1.18426036,92824.0,92819.0,0.003]
[1745379078547,0.01077319,92823.0,92819.0,0.003]
[1745379078784,0.01077319,92823.0,92819.0,0.002]
[1745379078939,0.01077319,92823.0,92819.0,0.001]
[1745379079147,1.18426036,92824.0,92819.0,0.003]
[1745379079338,1.18426036,92824.0,92819.0,0.004]
[1745379079620,1.17348729,92824.0,92819.0,0.001]
[1745379079826,1.17348729,92824.0,92819.0,0.002]
[1745379081137,1.16648729,92824.0,92819.0,0.003]
[1745379081390,0.0107733,92822.0,92819.0,0.002]
[1745379081607,1.16648729,92824.0,92819.0,0.001]
[1745379082447,0.0107733,92822.0,92819.0,0.001]
[1745379083646,0.19392163,92821.0,92819.0,0.001]
[1745379086676,0.0107733,92822.0,92819.0,0.001]
[1745379086895,0.20469491,92822.0,92819.0,0.001]
[1745379087202,0.19392372,92820.0,92819.0,0.001]
[1745379087431,0.20469491,92822.0,92819.0,0.001]
[1745379087666,0.19392372,92820.0,92819.0,0.001]
[1745379088239,0.30222677,92820.0,92819.0,0.001]
[1745379088851,0.29522677,92820.0,92819.0,0.001]
[1745379090885,0.19394252,92811.0,92810.0,0.13152974]
[1745379091056,0.01077516,92806.0,92801.0,0.34]
[1745379091240,0.01077516,92806.0,92802.0,0.001]
[1745379091683,0.01077528,92805.0,92802.0,0.01337302]
[1745379091919,0.01077528,92805.0,92800.0,0.26305948]
[1745379092167,0.20473589,92804.0,92800.0,0.26305948]
[1745379092430,0.19396693,92800.0,92798.0,0.05084316]
[1745379092834,0.10830305,92799.0,92798.0,0.05084316]
[1745379093040,0.15640305,92799.0,92798.0,0.05084316]
[1745379093249,0.15640305,92799.0,92798.0,0.06436903]
[1745379093858,0.20250305,92799.0,92798.0,0.06436903]
[1745379094293,0.20150305,92799.0,92798.0,0.06436903]
[1745379094640,0.20250305,92799.0,92798.0,0.06436903]
[1745379094991,0.30572526,92799.0,92798.0,0.05084316]
[1745379095161,0.20550305,92799.0,92798.0,0.05084316]
[1745379096467,0.19550305,92799.0,92798.0,0.05084316]
[1745379096868,0.60750305,92799.0,92798.0,0.05084316]
[1745379097286,0.61150305,92799.0,92798.0,0.05084316]
[1745379097665,0.6220439,92799.0,92798.0,0.04899415]
[1745379098038,0.6290439,92799.0,92798.0,0.04899415]
[1745379098178,0.6290439,92799.0,92785.0,0.0008494]
[1745379098179,0.19399478,92786.0,92785.0,0.0008494]
[1745379098381,0.80879783,92786.0,92785.0,0.0008494]
[1745379098589,0.82333868,92786.0,92785.0,0.0008494]
[1745379098791,0.82233868,92786.0,92785.0,0.0008494]
[1745379099399,0.82633868,92786.0,92785.0,0.00089613]
[1745379099643,0.90531065,92786.0,92785.0,0.00089613]
[1745379100421,0.82633868,92786.0,92785.0,0.00089613]
[1745379100619,0.83033868,92786.0,92785.0,0.00089613]
[1745379100908,0.82233868,92786.0,92785.0,0.00089613]
[1745379101186,0.82933868,92786.0,92785.0,0.00089613]
[1745379101475,0.83333868,92786.0,92785.0,0.00089613]
[1745379101607,0.82233868,92786.0,92785.0,0.00089613]
[1745379101962,0.85752504,92786.0,92785.0,0.00189613]
[1745379102165,0.85852504,92786.0,92785.0,0.00189613]
[1745379102495,0.84952504,92786.0,92785.0,0.00089613]
[1745379102687,0.84552504,92786.0,92785.0,0.00089613]
[1745379102898,0.86451528,92786.0,92785.0,0.00189613]
[1745379103271,0.84232892,92786.0,92785.0,0.00189613]
[1745379104066,0.84732892,92786.0,92785.0,0.00189613]
[1745379104265,0.83532892,92786.0,92785.0,0.00189613]
[1745379104666,0.84032892,92786.0,92785.0,0.00289613]
[1745379106448,0.81779783,92786.0,92785.0,0.00289613]
[1745379110198,0.92610088,92786.0,92785.0,0.00289613]
[1745379110411,0.94064173,92786.0,92785.0,0.00289613]
[1745379110977,0.83233868,92786.0,92785.0,0.00289613]
[1745379111539,0.81779783,92786.0,92785.0,0.00289613]
[1745379112326,0.81079783,92786.0,92785.0,0.00289613]
[1745379115719,0.91959783,92786.0,92785.0,0.00289613]
[1745379118524,0.93413868,92786.0,92785.0,0.00289613]
[1745379119524,1.04244173,92786.0,92785.0,0.00289613]
[1745379119863,0.92713868,92786.0,92785.0,0.00289613]
[1745379123998,0.92713868,92786.0,92780.0,0.02]
[1745379123999,0.2085419,92783.0,92780.0,1e-08]
[1745379124199,0.31684913,92781.0,92780.0,7.053e-05]
[1745379126730,0.32484913,92781.0,92780.0,0.00207053]
[1745379127141,0.31684913,92781.0,92780.0,7.053e-05]
[1745379127352,0.32484913,92781.0,92780.0,0.00107053]
[1745379127606,0.32684913,92781.0,92780.0,0.00207053]
[1745379129778,0.73884913,92781.0,92780.0,0.00207053]
[1745379132728,0.73884913,92781.0,92756.0,0.01338124]
[1745379132729,0.01078108,92755.0,92744.0,0.02381995]
[1745379132967,0.10830305,92755.0,92750.0,6.553e-05]
[1745379133179,0.01078016,92763.0,92750.0,0.00106553]
[1745379133378,0.10830305,92762.0,92753.0,0.13163374]
[1745379133626,0.10830305,92762.0,92754.0,0.13163374]
[1745379133802,0.11941934,92770.0,92758.0,0.20483365]
[1745379134007,0.01077899,92773.0,92760.0,0.45731627]
[1745379134213,0.11908216,92772.0,92760.0,0.45731627]
[1745379134459,0.01077841,92778.0,92764.0,0.01078004]
[1745379134661,0.01077876,92775.0,92768.0,0.13163374]
[1745379134937,0.11908181,92775.0,92768.0,0.13163374]
[1745379135142,0.003,92773.0,92768.0,0.13163374]
[1745379135343,0.42277806,92781.0,92768.0,0.01077957]
[1745379135547,0.10830305,92780.0,92772.0,0.01077911]
[1745379135773,0.10830305,92780.0,92772.0,0.0945]
[1745379136755,0.006,92775.0,92773.0,0.01077899]
[1745379136955,0.006,92775.0,92774.0,0.01077888]
[1745379137161,0.001,92786.0,92778.0,0.34]
[1745379137162,0.004,92780.0,92778.0,0.34]
[1745379137397,0.001,92786.0,92785.0,0.58119687]
[1745379138093,0.001,92786.0,92785.0,0.62849687]
[1745379138442,0.001,92786.0,92785.0,0.6285624]
[1745379139442,0.001,92786.0,92785.0,0.6345624]
[1745379139641,0.001,92786.0,92785.0,0.6395624]
[1745379140002,0.001,92786.0,92785.0,0.6285624]
[1745379140231,0.001,92786.0,92785.0,0.6325624]
[1745379140820,0.001,92786.0,92785.0,0.6365624]
[1745379141181,0.001,92786.0,92785.0,0.38783611]
[1745379141374,0.001,92786.0,92785.0,0.58183298]
[1745379143077,0.07968292,92813.0,92803.0,0.24756238]
[1745379143311,0.10830305,92812.0,92803.0,0.24756238]
[1745379143993,0.10830305,92812.0,92803.0,0.25833789]
[1745379144221,0.412,92819.0,92805.0,0.1939542]
[1745379144472,0.002,92813.0,92805.0,0.20472948]
[1745379144700,0.10830305,92818.0,92811.0,0.1939417]
[1745379144927,0.10830305,92818.0,92808.0,0.20472372]
[1745379145414,0.001,92813.0,92807.0,0.01077504]
[1745379145638,0.001,92813.0,92806.0,0.20472648]
[1745379145858,0.10830305,92818.0,92808.0,0.19394879]
[1745379146084,0.001,92812.0,92808.0,0.19394879]
[1745379146959,0.10830305,92818.0,92808.0,0.19394879]
[1745379147176,0.002,92813.0,92808.0,0.19394879]
[1745379147670,0.003,92812.0,92806.0,0.20472648]
[1745379147870,0.003,92812.0,92803.0,0.20046238]
[1745379148012,0.003,92812.0,92806.0,0.01374058]
[1745379148232,0.003,92812.0,92803.0,0.20046238]
[1745379148433,0.003,92812.0,92803.0,0.21123789]
[1745379148675,0.006,92812.0,92804.0,0.01077539]
[1745379148877,0.006,92812.0,92804.0,0.01332109]
[1745379149047,0.003,92812.0,92804.0,0.01332109]
[1745379149279,0.003,92812.0,92803.0,0.21123789]
[1745379149280,0.0107747,92810.0,92803.0,0.20046238]
[1745379149488,0.01077493,92808.0,92803.0,0.20046238]
[1745379149687,0.01077481,92809.0,92803.0,0.20046238]
[1745379150024,0.01077446,92812.0,92803.0,0.214053]
[1745379150228,0.01277446,92812.0,92803.0,0.214053]
[1745379150368,0.01477446,92812.0,92803.0,0.214053]
[1745379150572,0.01277446,92812.0,92803.0,0.214053]
[1745379150773,0.00577446,92812.0,92803.0,0.214053]
[1745379151019,0.001,92809.0,92803.0,0.214053]
[1745379152198,0.00577446,92812.0,92803.0,0.214053]
[1745379152404,0.001,92809.0,92803.0,0.214053]
[1745379153310,0.001,92809.0,92803.0,0.40801168]
[1745379155049,0.001,92809.0,92805.0,0.19395388]
[1745379155255,0.001,92809.0,92803.0,0.40801168]
[1745379155902,0.010774,92816.0,92803.0,0.40801168]
[1745379156191,0.002,92809.0,92803.0,0.40801168]
[1745379156576,0.11907717,92815.0,92803.0,0.40801168]
[1745379156785,0.001,92809.0,92803.0,0.40801168]
[1745379158520,0.11307717,92815.0,92803.0,0.40801168]
[1745379159334,0.11307717,92815.0,92803.0,0.214053]
[1745379159862,0.01077435,92813.0,92803.0,0.01359062]
[1745379160213,0.01077435,92813.0,92801.0,0.1939631]
[1745379160427,0.01077435,92813.0,92801.0,0.20753916]
[1745379162180,0.01077458,92811.0,92801.0,0.01357606]
[1745379162385,0.01077446,92812.0,92801.0,0.01357606]
[1745379162606,0.01077446,92812.0,92800.0,0.20046238]
[1745379163366,0.01077435,92813.0,92800.0,0.20046238]
[1745379163877,0.01077435,92813.0,92800.0,0.21411085]
[1745379164986,0.01077435,92813.0,92800.0,0.41885024]
[1745379165187,0.01077435,92813.0,92800.0,0.41985024]
[1745379165556,0.01077435,92813.0,92800.0,0.41885024]
[1745379165823,0.01077435,92813.0,92800.0,0.40907438]
[1745379166210,0.30701326,92815.0,92800.0,0.40907438]
[1745379166436,0.01077435,92813.0,92800.0,0.40907438]
[1745379166611,0.01077435,92813.0,92800.0,0.41985024]
[1745379167338,0.30701326,92815.0,92803.0,0.13146188]
[1745379167512,0.01077423,92814.0,92803.0,0.13146188]
[1745379167708,0.11307717,92815.0,92803.0,0.13146188]
[1745379169359,0.1088648,92828.0,92813.0,0.01077435]
[1745379169554,0.20510669,92827.0,92813.0,0.45686001]
[1745379169756,0.001,92815.0,92813.0,0.45686001]
[1745379169984,0.001,92815.0,92813.0,0.19393625]
[1745379170334,0.0004247,92825.0,92816.0,0.19393158]
[1745379170897,1.16991219,92824.0,92820.0,0.19392192]
[1745379171080,1.16991219,92824.0,92822.0,0.19391897]
[1745379171805,0.003,92823.0,92822.0,0.19391897]
[1745379172245,1.16691219,92824.0,92822.0,0.19391897]
[1745379172579,1.17291219,92824.0,92822.0,0.19391897]
[1745379173025,0.006,92823.0,92822.0,0.19391897]
[1745379173219,1.16691219,92824.0,92822.0,0.19391897]
[1745379173427,0.006,92823.0,92822.0,0.19391897]
[1745379174172,1.16591219,92824.0,92822.0,0.19391897]
[1745379175010,1.17191219,92824.0,92822.0,0.19391897]
[1745379175196,0.006,92823.0,92822.0,0.19391897]
[1745379175698,1.17191219,92824.0,92822.0,0.19391897]
[1745379176111,1.16591219,92824.0,92822.0,0.19391897]
[1745379176308,1.17191219,92824.0,92822.0,0.19391897]
[1745379176482,0.006,92823.0,92822.0,0.19391897]
[1745379177051,0.006,92823.0,92820.0,0.1908841]
[1745379177284,0.006,92823.0,92822.0,0.19391897]
[1745379177918,1.17191219,92824.0,92822.0,0.19391897]
[1745379178124,1.16791219,92824.0,92822.0,0.19391897]
[1745379178644,0.006,92823.0,92822.0,0.19391897]
[1745379179001,0.008,92823.0,92822.0,0.19391897]
[1745379179207,0.002,92823.0,92822.0,0.19391897]
[1745379179410,1.16591219,92824.0,92822.0,0.19391897]
[1745379179590,1.17391219,92824.0,92822.0,0.19391897]
[1745379180202,0.006,92823.0,92822.0,0.19391897]
[1745379181280,0.01,92823.0,92822.0,0.19391897]
[1745379181841,0.003,92823.0,92822.0,0.19391897]
[1745379183327,0.009,92823.0,92822.0,0.19391897]
[1745379185495,0.00870395,92823.0,92822.0,0.19391897]
[1745379186472,0.00870395,92823.0,92822.0,0.53391897]
[1745379186900,0.00870395,92823.0,92822.0,0.53491897]
[1745379187060,0.00870395,92823.0,92822.0,0.58321897]
[1745379187281,0.00870395,92823.0,92822.0,0.98814497]
[1745379187532,0.00270395,92823.0,92822.0,0.98814497]
[1745379187911,1.16591219,92824.0,92823.0,0.34]
[1745379188094,1.16591219,92824.0,92823.0,0.766679]
[1745379188310,1.16591219,92824.0,92823.0,0.567084]
[1745379189155,1.16691219,92824.0,92823.0,0.567084]
[1745379189612,1.16191219,92824.0,92823.0,0.477611]
[1745379190393,1.16191219,92824.0,92822.0,0.24321897]
[1745379191199,1.16091219,92824.0,92822.0,0.24321897]
[1745379191397,1.16091219,92824.0,92823.0,0.162057]
[1745379191728,1.16191219,92824.0,92823.0,0.162057]
[1745379191924,1.15991219,92824.0,92823.0,0.162057]
[1745379192412,1.15891219,92824.0,92823.0,0.162057]
[1745379192746,1.16091219,92824.0,92823.0,0.162057]
[1745379192898,1.16091219,92824.0,92822.0,0.24321897]
[1745379193114,1.16091219,92824.0,92823.0,0.161089]
[1745379193951,1.16091219,92824.0,92822.0,0.24321897]
[1745379194181,1.16191219,92824.0,92822.0,0.24321897]
[1745379194735,1.16191219,92824.0,92823.0,0.162057]
[1745379194927,1.16091219,92824.0,92823.0,0.162057]
[1745379195135,1.15991219,92824.0,92823.0,0.162057]
[1745379195572,1.16091219,92824.0,92823.0,0.162057]
[1745379195764,1.15991219,92824.0,92823.0,0.162057]
[1745379195970,1.16191219,92824.0,92823.0,0.162057]
[1745379197078,1.16091219,92824.0,92823.0,0.502057]
[1745379197295,1.15391219,92824.0,92823.0,0.502057]
[1745379197506,1.15491219,92824.0,92823.0,0.34]
[1745379198443,1.15491219,92824.0,92823.0,0.49660305]
[1745379198600,1.03519299,92824.0,92823.0,3.72969605]
[1745379198799,1.03519299,92824.0,92823.0,3.71593705]
[1745379198994,1.03519299,92824.0,92823.0,3.55988505]
[1745379199204,1.03319299,92824.0,92823.0,3.55988505]
[1745379199739,1.03219299,92824.0,92823.0,1.70766305]
[1745379199861,1.03219299,92824.0,92823.0,1.71066305]
[1745379200265,1.03219299,92824.0,92823.0,1.70766305]
[1745379200670,1.03219299,92824.0,92823.0,1.71366305]
[1745379201855,1.03219299,92824.0,92823.0,1.71666305]
[1745379202792,1.03219299,92824.0,92823.0,1.67905005]
[1745379202997,1.01289299,92824.0,92823.0,1.67905005]
[1745379205013,1.00589299,92824.0,92823.0,0.85505305]
[1745379205364,1.00589299,92824.0,92823.0,0.51505305]
[1745379205565,1.00593973,92824.0,92823.0,0.51505305]
[1745379212742,0.99893973,92824.0,92823.0,0.46675305]
[1745379212945,0.99893973,92824.0,92823.0,0.25153405]
[1745379214580,0.99893973,92824.0,92823.0,0.11830305]
[1745379214816,0.99893973,92824.0,92823.0,0.01]
[1745379216481,0.99893973,92824.0,92823.0,0.11830305]
[1745379219212,0.99893973,92824.0,92823.0,1.13801405]
[1745379219659,0.99893973,92824.0,92823.0,1.03122005]
[1745379220096,0.99893973,92824.0,92823.0,0.95914005]
[1745379220545,0.99193973,92824.0,92823.0,0.95914005]
[1745379220770,0.99193973,92824.0,92823.0,0.71524805]
[1745379220992,0.99193973,92824.0,92823.0,0.66388705]
[1745379221217,0.99193973,92824.0,92823.0,0.64988705]
[1745379221437,0.99193973,92824.0,92823.0,0.59421305]
[1745379221656,0.99193973,92824.0,92823.0,0.26387805]
[1745379225603,0.98881762,92824.0,92823.0,0.60387805]
[1745379228058,0.98181762,92824.0,92823.0,0.60387805]
[1745379230771,0.93705553,92824.0,92823.0,0.60387805]
[1745379233494,0.93705553,92824.0,92823.0,0.59073205]
[1745379233855,0.93705553,92824.0,92823.0,0.57298705]
[1745379234055,0.93705553,92824.0,92823.0,0.56073205]
[1745379235453,0.93705553,92824.0,92823.0,0.45830305]
[1745379235854,0.93005553,92824.0,92823.0,0.45830305]
[1745379240437,0.93005553,92824.0,92823.0,0.58766305]
[1745379243041,0.93005553,92824.0,92823.0,0.45830305]
[1745379243242,0.93005553,92824.0,92823.0,0.72218605]
[1745379243669,0.92305553,92824.0,92823.0,0.72218605]
[1745379247769,0.07725554,92824.0,92823.0,0.72218605]
[1745379248498,0.07725554,92824.0,92823.0,0.48358028]
[1745379251324,0.07025554,92824.0,92823.0,0.48358028]
[1745379252935,0.07025554,92824.0,92823.0,0.21969728]
[1745379253101,0.07025554,92824.0,92823.0,0.41330628]
[1745379253441,0.0004248,92827.0,92825.0,0.34]
[1745379253614,0.0004248,92827.0,92826.0,0.66019829]
[1745379253820,0.0004248,92827.0,92826.0,0.658044]
[1745379254319,0.0004248,92827.0,92826.0,0.85195518]
[1745379254532,0.0004248,92827.0,92826.0,0.53391118]
[1745379254674,0.0478248,92827.0,92826.0,0.53391118]
[1745379254887,0.0478248,92827.0,92826.0,0.53491118]
[1745379257022,0.0478248,92827.0,92826.0,0.53691118]
[1745379258924,0.0408248,92827.0,92826.0,0.53691118]
[1745379259137,0.0004248,92828.0,92827.0,0.34]
[1745379260138,0.0004248,92828.0,92827.0,0.342]
[1745379260358,0.0004248,92828.0,92827.0,0.002]
[1745379260564,0.0004248,92828.0,92827.0,0.00415427]
[1745379261941,0.0004248,92828.0,92827.0,0.00615427]
[1745379262505,0.0004248,92828.0,92827.0,0.34963927]
[1745379262900,0.0004248,92828.0,92827.0,0.347485]
[1745379264384,0.0004248,92828.0,92827.0,0.79578805]
[1745379266003,0.0004248,92828.0,92827.0,0.55879343]
[1745379266748,0.0476,92847.0,92846.0,0.53386941]
[1745379267118,0.0480676,92847.0,92846.0,0.53386941]
[1745379268978,0.0550676,92847.0,92846.0,0.53386941]
[1745379269900,0.0510676,92847.0,92846.0,0.53386941]
[1745379270244,0.0530676,92847.0,92846.0,0.53386941]
[1745379270746,0.0500676,92847.0,92846.0,0.53386941]
[1745379271681,0.0500676,92847.0,92846.0,0.34]
[1745379272083,0.0480676,92847.0,92846.0,0.35681365]
[1745379272287,0.0500676,92847.0,92846.0,0.35681365]
[1745379272487,0.0520676,92847.0,92846.0,0.35681365]
[1745379274423,0.0450676,92847.0,92846.0,0.35681365]
[1745379281990,0.0044676,92847.0,92846.0,0.35681365]
[1745379282217,0.0001672,92851.0,92850.0,0.34]
[1745379282393,0.00028801,92851.0,92850.0,0.34]
[1745379283312,0.00328801,92851.0,92848.0,0.35077029]
[1745379283665,0.00628801,92851.0,92848.0,0.35077029]
[1745379284827,0.00328801,92851.0,92848.0,0.35077029]
[1745379284963,0.00228801,92851.0,92848.0,0.35077029]
[1745379285365,0.00328801,92851.0,92848.0,0.35077029]
[1745379287436,0.00077052,92851.0,92848.0,0.35077029]
[1745379287991,0.00077052,92851.0,92850.0,0.34]
[1745379288649,0.00077052,92851.0,92850.0,0.520255]
[1745379288856,0.00077052,92851.0,92850.0,0.34]
[1745379289208,0.0004247,92854.0,92851.0,0.53385897]
[1745379290688,0.0004247,92854.0,92851.0,0.34]
[1745379291595,0.0024246,92852.0,92851.0,0.34]
[1745379292003,0.0034246,92852.0,92851.0,0.34]
[1745379292977,0.0034246,92852.0,92851.0,2.4057209]
[1745379293233,0.0034246,92852.0,92851.0,5.1807339]
[1745379293455,0.0034246,92852.0,92851.0,5.1375029]
[1745379293646,0.0034246,92852.0,92851.0,4.9222669]
[1745379294056,0.0034246,92852.0,92851.0,3.7257519]
[1745379294499,0.0014246,92852.0,92851.0,3.7257519]
[1745379294699,0.0014246,92852.0,92851.0,3.91961087]
[1745379294949,0.0014246,92852.0,92851.0,3.92061087]
[1745379295412,0.0014246,92852.0,92851.0,4.38361087]
[1745379295629,0.0004246,92852.0,92851.0,4.38361087]
[1745379295839,0.0004246,92852.0,92851.0,4.38461087]
[1745379296469,0.0004246,92852.0,92851.0,4.38361087]
[1745379296891,0.0004246,92852.0,92851.0,4.38761087]
[1745379297548,0.0004246,92852.0,92851.0,5.84159287]
[1745379298027,0.0004246,92852.0,92851.0,5.84359287]
[1745379300155,0.00066039,92862.0,92861.0,0.5338381]
[1745379300367,0.00066039,92862.0,92861.0,2.146542]